[Event "*** Titled Tuesday Blitz"]
[Site "Chess.com"]
[Date "2021.02.09"]
[Round "4"]
[White "LEGENYA1998"]
[Black "WPWPWP-2015"]
[Result "0-1"]
[WhiteElo "2241"]
[BlackElo "2492"]
[TimeControl "180+1"]
[EndTime "10:37:00 PST"]
[Termination "WPWPWP-2015 won by resignation"]

1. e4 {[%clk 0:03:00.9]} 1... c5 {[%clk 0:02:55]} 2. d3 {[%clk 0:02:59.8]} 2...
e6 {[%clk 0:02:51.1]} 3. Nf3 {[%clk 0:02:56.7]} 3... Nc6 {[%clk 0:02:45.6]} 4.
g3 {[%clk 0:02:56.9]} 4... Nf6 {[%clk 0:02:45]} 5. Bg2 {[%clk 0:02:56]} 5... Be7
{[%clk 0:02:45.3]} 6. O-O {[%clk 0:02:55.6]} 6... O-O {[%clk 0:02:45.2]} 7. b3
{[%clk 0:02:53.3]} 7... d6 {[%clk 0:02:44.4]} 8. Bb2 {[%clk 0:02:53.1]} 8... e5
{[%clk 0:02:44.1]} 9. h3 {[%clk 0:02:53.2]} 9... b5 {[%clk 0:02:43]} 10. a4
{[%clk 0:02:52.8]} 10... bxa4 {[%clk 0:02:29.9]} 11. Rxa4 {[%clk 0:02:51]} 11...
Bd7 {[%clk 0:02:29.5]} 12. Ra1 {[%clk 0:02:49.5]} 12... Nd4 {[%clk 0:02:27.6]}
13. Nxd4 {[%clk 0:02:40.9]} 13... cxd4 {[%clk 0:02:26.8]} 14. f4 {[%clk
0:02:41.1]} 14... Qc8 {[%clk 0:02:25.3]} 15. Kh2 {[%clk 0:02:40]} 15... Qc7
{[%clk 0:02:23.6]} 16. Nd2 {[%clk 0:02:40.1]} 16... Rfc8 {[%clk 0:02:22.1]} 17.
Nc4 {[%clk 0:02:40.1]} 17... Bb5 {[%clk 0:02:14.8]} 18. fxe5 {[%clk 0:02:39.4]}
18... dxe5 {[%clk 0:02:14.4]} 19. Ba3 {[%clk 0:02:31]} 19... Bxc4 {[%clk
0:02:12.1]} 20. bxc4 {[%clk 0:02:23.6]} 20... a5 {[%clk 0:02:08.6]} 21. Bxe7
{[%clk 0:02:22.8]} 21... Qxe7 {[%clk 0:02:07.9]} 22. Ra4 {[%clk 0:02:23.4]}
22... h5 {[%clk 0:02:03.7]} 23. Qa1 {[%clk 0:02:11.6]} 23... Qc7 {[%clk
0:01:51.4]} 24. Qa3 {[%clk 0:02:08.9]} 24... Ra6 {[%clk 0:01:50.1]} 25. Ra1
{[%clk 0:02:07.7]} 25... Rca8 {[%clk 0:01:49.8]} 26. Bf3 {[%clk 0:02:01.5]}
26... g6 {[%clk 0:01:48.2]} 27. Rb1 {[%clk 0:01:55.9]} 27... Kg7 {[%clk
0:01:43.9]} 28. Qb3 {[%clk 0:01:54.7]} 28... Nd7 {[%clk 0:01:40.6]} 29. Qb5
{[%clk 0:01:47.6]} 29... Nc5 {[%clk 0:01:38.2]} 30. Ra3 {[%clk 0:01:43.9]} 30...
a4 {[%clk 0:01:37.4]} 31. Kg2 {[%clk 0:01:41.9]} 31... Qe7 {[%clk 0:01:27.9]}
32. Qb4 {[%clk 0:01:33.1]} 32... R8a7 {[%clk 0:01:25.1]} 33. Ra2 {[%clk
0:01:24.8]} 33... Rb7 {[%clk 0:01:23.8]} 34. Qxc5 {[%clk 0:01:19.8]} 34... Qxc5
{[%clk 0:01:21.1]} 35. Rxb7 {[%clk 0:01:20]} 35... a3 {[%clk 0:01:21]} 0-1

[Event "*** Titled Tuesday Blitz"]
[Site "Chess.com"]
[Date "2021.02.09"]
[Round "4"]
[White "MaevskiyNikolay"]
[Black "Chandradi"]
[Result "1/2-1/2"]
[WhiteElo "2531"]
[BlackElo "2328"]
[TimeControl "180+1"]
[EndTime "10:37:10 PST"]
[Termination "Game drawn by agreement"]

1. d4 {[%clk 0:01:58.6]} 1... Nf6 {[%clk 0:02:59.2]} 2. c4 {[%clk 0:01:58.4]}
2... e6 {[%clk 0:02:59]} 3. Nf3 {[%clk 0:01:57.2]} 3... b6 {[%clk 0:02:58.8]} 4.
Nc3 {[%clk 0:01:56.6]} 4... Bb7 {[%clk 0:02:57.6]} 5. Bg5 {[%clk 0:01:57.1]}
5... Be7 {[%clk 0:02:57.1]} 6. e3 {[%clk 0:01:56.7]} 6... Ne4 {[%clk 0:02:56.6]}
7. Bxe7 {[%clk 0:01:54.5]} 7... Qxe7 {[%clk 0:02:56.7]} 8. Bd3 {[%clk
0:01:55.1]} 8... Nxc3 {[%clk 0:02:53.4]} 9. bxc3 {[%clk 0:01:55.1]} 9... d6
{[%clk 0:02:53.5]} 10. O-O {[%clk 0:01:55.1]} 10... Nd7 {[%clk 0:02:53.7]} 11.
Nd2 {[%clk 0:01:54.6]} 11... e5 {[%clk 0:02:39.3]} 12. a4 {[%clk 0:01:53.9]}
12... a5 {[%clk 0:02:38.1]} 13. Rb1 {[%clk 0:01:53.5]} 13... h6 {[%clk
0:02:33.8]} 14. Re1 {[%clk 0:01:50.2]} 14... e4 {[%clk 0:02:25.4]} 15. Be2
{[%clk 0:01:45.9]} 15... O-O {[%clk 0:02:23.6]} 16. Nf1 {[%clk 0:01:43.9]} 16...
Kh8 {[%clk 0:02:17.4]} 17. Ng3 {[%clk 0:01:43.5]} 17... f5 {[%clk 0:02:17.2]}
18. f4 {[%clk 0:01:36.2]} 18... exf3 {[%clk 0:01:55.7]} 19. Bxf3 {[%clk
0:01:36]} 19... Be4 {[%clk 0:01:55.8]} 20. Bxe4 {[%clk 0:01:27.8]} 20... fxe4
{[%clk 0:01:54.8]} 21. Qh5 {[%clk 0:01:26.7]} 21... Rae8 {[%clk 0:01:47.2]} 22.
Rf1 {[%clk 0:01:25.2]} 22... Nf6 {[%clk 0:01:32]} 23. Qg6 {[%clk 0:01:12.6]}
23... Qf7 {[%clk 0:01:32.1]} 24. Qxf7 {[%clk 0:01:12.2]} 24... Rxf7 {[%clk
0:01:33]} 25. h3 {[%clk 0:01:06.2]} 25... g6 {[%clk 0:01:29.4]} 26. Rb5 {[%clk
0:01:05]} 26... Kg7 {[%clk 0:01:28.8]} 27. Ne2 {[%clk 0:01:03.8]} 1/2-1/2

[Event "*** Titled Tuesday Blitz"]
[Site "Chess.com"]
[Date "2021.02.09"]
[Round "4"]
[White "Legendinunknown"]
[Black "JQuiroga18"]
[Result "1-0"]
[WhiteElo "2610"]
[BlackElo "2419"]
[TimeControl "180+1"]
[EndTime "10:37:12 PST"]
[Termination "Legendinunknown won by checkmate"]

1. d4 {[%clk 0:03:00.9]} 1... Nf6 {[%clk 0:02:59.2]} 2. c4 {[%clk 0:02:58.2]}
2... e6 {[%clk 0:02:59.3]} 3. Nc3 {[%clk 0:02:57.4]} 3... d5 {[%clk 0:02:59.2]}
4. Nf3 {[%clk 0:02:55.3]} 4... dxc4 {[%clk 0:02:59]} 5. e4 {[%clk 0:02:53.2]}
5... b5 {[%clk 0:02:59.1]} 6. e5 {[%clk 0:02:51.3]} 6... Nd5 {[%clk 0:02:59.1]}
7. Nxb5 {[%clk 0:02:51.8]} 7... Nb6 {[%clk 0:02:59.6]} 8. Be2 {[%clk 0:02:48.5]}
8... Nc6 {[%clk 0:02:59.6]} 9. O-O {[%clk 0:02:48.2]} 9... Be7 {[%clk
0:02:59.4]} 10. Be3 {[%clk 0:02:46.6]} 10... Rb8 {[%clk 0:02:47.8]} 11. Rc1
{[%clk 0:02:43]} 11... O-O {[%clk 0:02:44.6]} 12. Na3 {[%clk 0:02:41.5]} 12...
Bxa3 {[%clk 0:02:43.6]} 13. bxa3 {[%clk 0:02:42.4]} 13... Ba6 {[%clk 0:02:29.5]}
14. Ng5 {[%clk 0:02:38.9]} 14... Qe7 {[%clk 0:02:21.5]} 15. Qc2 {[%clk
0:02:33.5]} 15... g6 {[%clk 0:02:20.3]} 16. Ne4 {[%clk 0:02:33.1]} 16... Rfd8
{[%clk 0:02:17.1]} 17. Bg5 {[%clk 0:02:28.8]} 17... Qxa3 {[%clk 0:02:07.3]} 18.
Bxd8 {[%clk 0:02:28.1]} 18... Rxd8 {[%clk 0:02:07.5]} 19. Nf6+ {[%clk
0:02:25.8]} 19... Kg7 {[%clk 0:02:05.8]} 20. Qe4 {[%clk 0:02:19.4]} 20... Nxd4
{[%clk 0:02:01.1]} 21. Rcd1 {[%clk 0:02:07.3]} 21... Nxe2+ {[%clk 0:01:56.9]}
22. Qxe2 {[%clk 0:02:08.2]} 22... c3 {[%clk 0:01:37.1]} 23. Qe3 {[%clk
0:01:25.7]} 23... Rxd1 {[%clk 0:01:10.9]} 24. Rxd1 {[%clk 0:01:22.5]} 24... c2
{[%clk 0:01:07.9]} 25. Nh5+ {[%clk 0:01:22.2]} 25... Kf8 {[%clk 0:00:54.3]} 26.
Rd8+ {[%clk 0:01:16.3]} 26... Ke7 {[%clk 0:00:52.5]} 27. Qg5+ {[%clk 0:01:15.2]}
27... f6 {[%clk 0:00:51.4]} 28. Qxf6# {[%clk 0:01:15.9]} 1-0

[Event "*** Titled Tuesday Blitz"]
[Site "Chess.com"]
[Date "2021.02.09"]
[Round "4"]
[White "GadimbayliA"]
[Black "OriTaichman"]
[Result "1-0"]
[WhiteElo "2858"]
[BlackElo "2533"]
[TimeControl "180+1"]
[EndTime "10:37:16 PST"]
[Termination "GadimbayliA won by resignation"]

1. e4 {[%clk 0:03:00.9]} 1... c5 {[%clk 0:02:58.8]} 2. Nf3 {[%clk 0:03:00.5]}
2... Nc6 {[%clk 0:02:57.8]} 3. Bb5 {[%clk 0:02:59.8]} 3... d6 {[%clk 0:02:56.3]}
4. O-O {[%clk 0:02:58.6]} 4... Bd7 {[%clk 0:02:55.8]} 5. Nc3 {[%clk 0:02:57.6]}
5... g6 {[%clk 0:02:52.4]} 6. d4 {[%clk 0:02:54.7]} 6... cxd4 {[%clk 0:02:52.3]}
7. Nxd4 {[%clk 0:02:55.6]} 7... Bg7 {[%clk 0:02:52.3]} 8. Be3 {[%clk 0:02:56]}
8... Nf6 {[%clk 0:02:51.6]} 9. Re1 {[%clk 0:02:55.4]} 9... Rc8 {[%clk
0:02:23.5]} 10. Nxc6 {[%clk 0:02:45.4]} 10... bxc6 {[%clk 0:02:07.2]} 11. Ba6
{[%clk 0:02:44.7]} 11... Rb8 {[%clk 0:02:07.2]} 12. Rb1 {[%clk 0:02:44.5]} 12...
Qa5 {[%clk 0:02:02.7]} 13. Bd3 {[%clk 0:02:43.6]} 13... Ng4 {[%clk 0:01:54.9]}
14. Bd2 {[%clk 0:02:34.8]} 14... Qe5 {[%clk 0:01:42.1]} 15. g3 {[%clk
0:02:23.6]} 15... Qh5 {[%clk 0:01:39.8]} 16. h4 {[%clk 0:02:22]} 16... Bd4
{[%clk 0:01:33.5]} 17. Rf1 {[%clk 0:02:19.8]} 17... Qe5 {[%clk 0:01:16]} 18. Ne2
{[%clk 0:02:07.7]} 18... Bxb2 {[%clk 0:00:36.6]} 19. Bc3 {[%clk 0:01:59.2]}
19... Bxc3 {[%clk 0:00:18]} 20. Rxb8+ {[%clk 0:02:00.1]} 20... Bc8 {[%clk
0:00:17.9]} 21. Rxc8+ {[%clk 0:02:00.1]} 21... Kd7 {[%clk 0:00:18.3]} 22. Rxh8
{[%clk 0:02:00.6]} 22... h5 {[%clk 0:00:15.9]} 23. Nxc3 {[%clk 0:01:59.7]} 23...
Qxc3 {[%clk 0:00:14.9]} 24. Rb8 {[%clk 0:01:58.9]} 24... Kc7 {[%clk 0:00:14.4]}
25. Qb1 {[%clk 0:01:58.5]} 25... d5 {[%clk 0:00:15]} 26. Qb7+ {[%clk 0:01:56.1]}
26... Kd6 {[%clk 0:00:15.4]} 27. Rd8+ {[%clk 0:01:57]} 27... Ke6 {[%clk
0:00:14.3]} 28. exd5+ {[%clk 0:01:56.8]} 28... Kf6 {[%clk 0:00:13.7]} 29. Qxc6+
{[%clk 0:01:56.7]} 1-0

[Event "*** Titled Tuesday Blitz"]
[Site "Chess.com"]
[Date "2021.02.09"]
[Round "4"]
[White "FMJoseHerrera"]
[Black "Happy1712Drummer"]
[Result "0-1"]
[WhiteElo "2578"]
[BlackElo "2390"]
[TimeControl "180+1"]
[EndTime "10:37:17 PST"]
[Termination "Happy1712Drummer won on time"]

1. Nf3 {[%clk 0:03:00.9]} 1... Nf6 {[%clk 0:02:58.3]} 2. g3 {[%clk 0:03:01.8]}
2... g6 {[%clk 0:02:58.5]} 3. Bg2 {[%clk 0:03:02.6]} 3... Bg7 {[%clk 0:02:59.2]}
4. d3 {[%clk 0:03:03.5]} 4... O-O {[%clk 0:02:59.8]} 5. Nc3 {[%clk 0:03:04.4]}
5... c5 {[%clk 0:02:58.6]} 6. h4 {[%clk 0:03:05.3]} 6... h6 {[%clk 0:02:53.5]}
7. Bf4 {[%clk 0:03:03.4]} 7... d6 {[%clk 0:02:52.3]} 8. Qd2 {[%clk 0:03:02.5]}
8... Kh7 {[%clk 0:02:48]} 9. h5 {[%clk 0:03:02.3]} 9... Nxh5 {[%clk 0:02:45.7]}
10. Be3 {[%clk 0:03:00.2]} 10... Nc6 {[%clk 0:02:40.6]} 11. O-O-O {[%clk
0:02:59.1]} 11... e5 {[%clk 0:02:39.1]} 12. Rh4 {[%clk 0:02:56.1]} 12... f5
{[%clk 0:02:36.4]} 13. Rdh1 {[%clk 0:02:47.9]} 13... Nd4 {[%clk 0:02:29.5]} 14.
Rxh5 {[%clk 0:02:36.6]} 14... gxh5 {[%clk 0:02:28.2]} 15. Rxh5 {[%clk
0:02:37.5]} 15... Nxf3 {[%clk 0:02:20.5]} 16. Bxf3 {[%clk 0:02:36.8]} 16... Qf6
{[%clk 0:02:20.7]} 17. Nd5 {[%clk 0:02:32.6]} 17... Qe6 {[%clk 0:02:13.5]} 18.
Kb1 {[%clk 0:02:12.8]} 18... Rf7 {[%clk 0:02:11.1]} 19. g4 {[%clk 0:02:06.2]}
19... f4 {[%clk 0:02:04.1]} 20. Be4+ {[%clk 0:02:03.1]} 20... Kg8 {[%clk
0:02:02.5]} 21. Bxf4 {[%clk 0:01:33.8]} 21... exf4 {[%clk 0:01:59.8]} 22. Nxf4
{[%clk 0:01:34.7]} 22... Qf6 {[%clk 0:01:50.5]} 0-1

[Event "*** Titled Tuesday Blitz"]
[Site "Chess.com"]
[Date "2021.02.09"]
[Round "4"]
[White "guillembaches"]
[Black "MerryPoppies"]
[Result "1-0"]
[WhiteElo "2423"]
[BlackElo "2178"]
[TimeControl "180+1"]
[EndTime "10:37:19 PST"]
[Termination "guillembaches won by resignation"]

1. e4 {[%clk 0:03:00.9]} 1... e5 {[%clk 0:02:45.4]} 2. Nf3 {[%clk 0:03:00.5]}
2... Nc6 {[%clk 0:02:45.2]} 3. Nc3 {[%clk 0:03:01.1]} 3... Nf6 {[%clk
0:02:36.7]} 4. d4 {[%clk 0:03:01.5]} 4... Bb4 {[%clk 0:02:27.5]} 5. Nxe5 {[%clk
0:03:00.9]} 5... Nxe4 {[%clk 0:02:24.6]} 6. Qg4 {[%clk 0:02:56.7]} 6... Nxc3
{[%clk 0:02:14.9]} 7. Qxg7 {[%clk 0:02:48.9]} 7... Ne4+ {[%clk 0:01:39.5]} 8. c3
{[%clk 0:02:39.6]} 8... Qf6 {[%clk 0:01:39.3]} 9. Qxf6 {[%clk 0:02:21.9]} 9...
Nxf6 {[%clk 0:01:40.2]} 10. Nxc6 {[%clk 0:02:19.6]} 10... dxc6 {[%clk
0:01:27.9]} 11. cxb4 {[%clk 0:02:18.4]} 11... Bf5 {[%clk 0:01:25]} 12. Bf4
{[%clk 0:02:00.7]} 12... O-O-O {[%clk 0:01:24]} 13. Be5 {[%clk 0:01:59]} 13...
Rhe8 {[%clk 0:01:23.4]} 14. O-O-O {[%clk 0:01:56.5]} 14... Ng4 {[%clk
0:01:02.9]} 15. Bg3 {[%clk 0:01:55.8]} 15... Nf6 {[%clk 0:00:24]} 16. Bc4 {[%clk
0:01:55.7]} 16... Bg6 {[%clk 0:00:20.8]} 17. Bh4 {[%clk 0:01:44.6]} 17... Rd6
{[%clk 0:00:18.9]} 18. Rhe1 {[%clk 0:01:44]} 18... Rxe1 {[%clk 0:00:17.8]} 19.
Rxe1 {[%clk 0:01:44.9]} 19... Nd5 {[%clk 0:00:16]} 20. a3 {[%clk 0:01:33.6]}
20... Nf4 {[%clk 0:00:15.5]} 21. Re8+ {[%clk 0:01:31.9]} 1-0

[Event "*** Titled Tuesday Blitz"]
[Site "Chess.com"]
[Date "2021.02.09"]
[Round "4"]
[White "nochewycandy"]
[Black "Brave_spirit12"]
[Result "0-1"]
[WhiteElo "2656"]
[BlackElo "2495"]
[TimeControl "180+1"]
[EndTime "10:37:23 PST"]
[Termination "Brave_spirit12 won by resignation"]

1. e4 {[%clk 0:03:00.9]} 1... e6 {[%clk 0:02:59.7]} 2. d4 {[%clk 0:02:59.6]}
2... d5 {[%clk 0:03:00]} 3. Nc3 {[%clk 0:03:00.4]} 3... Nf6 {[%clk 0:03:00]} 4.
e5 {[%clk 0:03:00.4]} 4... Nfd7 {[%clk 0:03:00.1]} 5. f4 {[%clk 0:03:01.1]} 5...
c5 {[%clk 0:03:00.5]} 6. Nf3 {[%clk 0:02:58.3]} 6... Nc6 {[%clk 0:03:01.1]} 7.
Be3 {[%clk 0:02:52.7]} 7... Qb6 {[%clk 0:03:00]} 8. Na4 {[%clk 0:02:49.2]} 8...
Qa5+ {[%clk 0:02:59.2]} 9. c3 {[%clk 0:02:49.6]} 9... cxd4 {[%clk 0:02:59.5]}
10. Nxd4 {[%clk 0:02:47.1]} 10... Nxd4 {[%clk 0:02:57.8]} 11. Bxd4 {[%clk
0:02:47.5]} 11... b5 {[%clk 0:02:58.1]} 12. b4 {[%clk 0:02:08.6]} 12... Qxa4
{[%clk 0:02:56.4]} 13. Qc1 {[%clk 0:02:09.3]} 13... a5 {[%clk 0:02:48]} 14. a3
{[%clk 0:02:03.8]} 14... axb4 {[%clk 0:02:42.9]} 15. cxb4 {[%clk 0:02:04.7]}
15... Bb7 {[%clk 0:02:05.4]} 16. Qc7 {[%clk 0:01:41.8]} 16... Qa6 {[%clk
0:01:24.1]} 17. a4 {[%clk 0:01:32.8]} 17... Rc8 {[%clk 0:01:18.7]} 18. Qa5
{[%clk 0:01:30.9]} 18... Qxa5 {[%clk 0:01:14.6]} 19. bxa5 {[%clk 0:01:31.8]}
19... Bb4+ {[%clk 0:01:13.8]} 20. Ke2 {[%clk 0:01:30.3]} 20... bxa4 {[%clk
0:01:09.5]} 21. Rxa4 {[%clk 0:01:31.2]} 21... Bc5 {[%clk 0:01:06.7]} 22. a6
{[%clk 0:01:28]} 22... Bxa6+ {[%clk 0:01:04.6]} 23. Rxa6 {[%clk 0:01:26.9]}
23... Bxd4 {[%clk 0:01:04.7]} 24. Kf3 {[%clk 0:01:25.5]} 24... O-O {[%clk
0:01:02.1]} 25. Bb5 {[%clk 0:01:24.7]} 25... Nc5 {[%clk 0:01:01.1]} 26. Ra2
{[%clk 0:01:22.7]} 26... Rb8 {[%clk 0:01:01.2]} 27. Be2 {[%clk 0:01:21.9]} 27...
Rb3+ {[%clk 0:00:59.8]} 28. Kg4 {[%clk 0:01:22.4]} 28... Ne4 {[%clk 0:00:58.5]}
29. Rc1 {[%clk 0:01:20.4]} 29... f5+ {[%clk 0:00:55.7]} 30. exf6 {[%clk
0:01:20]} 30... Nxf6+ {[%clk 0:00:55.6]} 31. Kh4 {[%clk 0:01:19.5]} 31... Ne4
{[%clk 0:00:50.7]} 0-1

[Event "*** Titled Tuesday Blitz"]
[Site "Chess.com"]
[Date "2021.02.09"]
[Round "4"]
[White "SaraciNderim"]
[Black "BabyBoss31"]
[Result "1-0"]
[WhiteElo "2792"]
[BlackElo "2351"]
[TimeControl "180+1"]
[EndTime "10:37:24 PST"]
[Termination "SaraciNderim won by resignation"]

1. e4 {[%clk 0:03:00.9]} 1... c6 {[%clk 0:03:00]} 2. d4 {[%clk 0:03:00.8]} 2...
d5 {[%clk 0:03:00.5]} 3. exd5 {[%clk 0:03:01.7]} 3... cxd5 {[%clk 0:03:00.7]} 4.
Bd3 {[%clk 0:03:02.4]} 4... Nf6 {[%clk 0:02:58]} 5. c3 {[%clk 0:03:02.8]} 5...
Bg4 {[%clk 0:02:51.1]} 6. Qb3 {[%clk 0:03:02]} 6... Qd7 {[%clk 0:02:40.5]} 7.
Bf4 {[%clk 0:03:01.2]} 7... Nc6 {[%clk 0:02:39.8]} 8. Nd2 {[%clk 0:03:00.9]}
8... e6 {[%clk 0:02:33.4]} 9. h3 {[%clk 0:03:01]} 9... Bh5 {[%clk 0:02:31.5]}
10. Ngf3 {[%clk 0:03:01.3]} 10... Bg6 {[%clk 0:02:26.2]} 11. Bb5 {[%clk
0:02:57.5]} 11... Bd6 {[%clk 0:02:12.5]} 12. Ne5 {[%clk 0:02:53.7]} 12... Bxe5
{[%clk 0:01:35.1]} 13. Bxe5 {[%clk 0:02:53.4]} 13... a6 {[%clk 0:01:20.5]} 14.
Bxf6 {[%clk 0:02:47.8]} 14... gxf6 {[%clk 0:01:18.4]} 15. Qa3 {[%clk 0:02:47.9]}
15... Qe7 {[%clk 0:01:01.7]} 16. Qa4 {[%clk 0:02:46]} 16... Qd7 {[%clk
0:00:37.2]} 17. Nb3 {[%clk 0:02:45.1]} 17... O-O {[%clk 0:00:33.4]} 18. Nc5
{[%clk 0:02:39.8]} 18... Qc7 {[%clk 0:00:32.6]} 19. Bxc6 {[%clk 0:02:37.5]}
19... Qxc6 {[%clk 0:00:32.2]} 20. Qxc6 {[%clk 0:02:37.1]} 20... bxc6 {[%clk
0:00:33.1]} 21. Kd2 {[%clk 0:02:37.3]} 21... Rfb8 {[%clk 0:00:31.3]} 22. b3
{[%clk 0:02:36.7]} 22... Kg7 {[%clk 0:00:29.6]} 23. g4 {[%clk 0:02:36.5]} 23...
a5 {[%clk 0:00:26.6]} 24. Rhf1 {[%clk 0:02:36.1]} 24... f5 {[%clk 0:00:22.3]}
25. g5 {[%clk 0:02:30.3]} 25... Bh5 {[%clk 0:00:21.8]} 26. f4 {[%clk 0:02:28.1]}
26... h6 {[%clk 0:00:20.3]} 27. gxh6+ {[%clk 0:02:19.8]} 27... Kxh6 {[%clk
0:00:21.2]} 28. Rg1 {[%clk 0:02:20]} 28... Rg8 {[%clk 0:00:19.4]} 29. Ke3 {[%clk
0:02:15.1]} 29... Bg6 {[%clk 0:00:15.4]} 30. Rg5 {[%clk 0:02:14.6]} 30... Rh8
{[%clk 0:00:14.4]} 31. h4 {[%clk 0:02:13.1]} 31... Bh7 {[%clk 0:00:11.2]} 32.
Rag1 {[%clk 0:02:12.6]} 32... Rag8 {[%clk 0:00:11.1]} 33. Rxg8 {[%clk
0:02:09.5]} 33... Rxg8 {[%clk 0:00:08.8]} 34. Rxg8 {[%clk 0:02:08.7]} 34... Bxg8
{[%clk 0:00:09.7]} 35. Nb7 {[%clk 0:02:09.6]} 35... Kh5 {[%clk 0:00:09.7]} 36.
Nxa5 {[%clk 0:02:08.8]} 36... Kxh4 {[%clk 0:00:10.3]} 37. Nxc6 {[%clk
0:02:09.3]} 1-0

[Event "*** Titled Tuesday Blitz"]
[Site "Chess.com"]
[Date "2021.02.09"]
[Round "4"]
[White "MIJuanReyesRosa"]
[Black "alexg2003"]
[Result "0-1"]
[WhiteElo "2110"]
[BlackElo "2389"]
[TimeControl "180+1"]
[EndTime "10:37:29 PST"]
[Termination "alexg2003 won on time"]

1. d4 {[%clk 0:02:57.9]} 1... c5 {[%clk 0:02:59.7]} 2. Nf3 {[%clk 0:02:53.7]}
2... cxd4 {[%clk 0:02:58.8]} 3. Nxd4 {[%clk 0:02:53.4]} 3... e5 {[%clk
0:02:59.1]} 4. Nb3 {[%clk 0:02:52]} 4... d5 {[%clk 0:02:59]} 5. g3 {[%clk
0:02:50.4]} 5... Nf6 {[%clk 0:02:58.7]} 6. Bg2 {[%clk 0:02:50.6]} 6... h5 {[%clk
0:02:58.1]} 7. h4 {[%clk 0:02:45.3]} 7... Be6 {[%clk 0:02:56.4]} 8. Bg5 {[%clk
0:02:43.3]} 8... e4 {[%clk 0:02:41.8]} 9. c4 {[%clk 0:02:20.2]} 9... Nbd7 {[%clk
0:02:30.5]} 10. O-O {[%clk 0:01:56.9]} 10... dxc4 {[%clk 0:02:26.8]} 11. Nd4
{[%clk 0:01:49.2]} 11... Qb6 {[%clk 0:02:26.5]} 12. Nc3 {[%clk 0:01:28.7]} 12...
Bc5 {[%clk 0:02:16.8]} 13. Na4 {[%clk 0:00:50.6]} 13... Qd6 {[%clk 0:02:12.2]}
14. Nxe6 {[%clk 0:00:22.4]} 14... Qxe6 {[%clk 0:02:01]} 15. Qc2 {[%clk
0:00:12.3]} 15... e3 {[%clk 0:01:54.9]} 16. Kh2 {[%clk 0:00:08.9]} 16... exf2
{[%clk 0:01:51.6]} 17. Bxb7 {[%clk 0:00:06.2]} 17... O-O {[%clk 0:01:45.3]} 18.
Bxa8 {[%clk 0:00:04.5]} 18... Ng4+ {[%clk 0:01:41.4]} 19. Kg2 {[%clk 0:00:03.1]}
19... Rxa8 {[%clk 0:01:40.9]} 20. Nxc5 {[%clk 0:00:01.7]} 20... Nxc5 {[%clk
0:01:40.8]} 0-1

[Event "*** Titled Tuesday Blitz"]
[Site "Chess.com"]
[Date "2021.02.09"]
[Round "4"]
[White "MikeSailer"]
[Black "EvilMorty23"]
[Result "0-1"]
[WhiteElo "2183"]
[BlackElo "2457"]
[TimeControl "180+1"]
[EndTime "10:37:29 PST"]
[Termination "EvilMorty23 won by resignation"]

1. d4 {[%clk 0:03:00.4]} 1... Nf6 {[%clk 0:02:53.6]} 2. Nf3 {[%clk 0:03:00.8]}
2... e6 {[%clk 0:02:53.3]} 3. Bg5 {[%clk 0:03:00.8]} 3... d5 {[%clk 0:02:50.2]}
4. e3 {[%clk 0:03:01.6]} 4... Be7 {[%clk 0:02:48.9]} 5. Be2 {[%clk 0:03:02.3]}
5... b6 {[%clk 0:02:47.8]} 6. O-O {[%clk 0:03:02.6]} 6... Bb7 {[%clk 0:02:48.2]}
7. c4 {[%clk 0:03:02.9]} 7... dxc4 {[%clk 0:02:48.3]} 8. Bxc4 {[%clk 0:03:03]}
8... Nbd7 {[%clk 0:02:49.2]} 9. Nc3 {[%clk 0:03:03.4]} 9... O-O {[%clk
0:02:49.3]} 10. a3 {[%clk 0:03:04.2]} 10... c5 {[%clk 0:02:49.4]} 11. Rc1 {[%clk
0:03:03.2]} 11... Rc8 {[%clk 0:02:48.6]} 12. Ba2 {[%clk 0:03:03.4]} 12... cxd4
{[%clk 0:02:44.5]} 13. Nxd4 {[%clk 0:03:01.8]} 13... Nc5 {[%clk 0:02:41]} 14.
Qe2 {[%clk 0:02:51.7]} 14... Qe8 {[%clk 0:02:32.2]} 15. Rfd1 {[%clk 0:02:50.1]}
15... h6 {[%clk 0:02:23.5]} 16. Bh4 {[%clk 0:02:49.7]} 16... Nfe4 {[%clk
0:02:18.6]} 17. Bxe7 {[%clk 0:02:48.8]} 17... Qxe7 {[%clk 0:02:18.5]} 18. Nxe4
{[%clk 0:02:41.3]} 18... Nxe4 {[%clk 0:02:18]} 19. Nb5 {[%clk 0:02:40.9]} 19...
a6 {[%clk 0:02:06.7]} 20. Nd4 {[%clk 0:02:38.4]} 20... Rfd8 {[%clk 0:02:03.3]}
21. Bc4 {[%clk 0:02:23.8]} 21... b5 {[%clk 0:02:02.5]} 22. Bd3 {[%clk
0:02:24.3]} 22... Nc5 {[%clk 0:02:02.2]} 23. Bb1 {[%clk 0:02:22.2]} 23... Qg5
{[%clk 0:02:00.1]} 24. Nf3 {[%clk 0:02:14.8]} 24... Qh5 {[%clk 0:01:56.8]} 25.
Rxd8+ {[%clk 0:02:10.1]} 25... Rxd8 {[%clk 0:01:57.7]} 26. Qc2 {[%clk
0:02:01.3]} 26... Nd3 {[%clk 0:01:49]} 27. Rd1 {[%clk 0:01:53.9]} 27... Be4
{[%clk 0:01:35.2]} 28. Qc7 {[%clk 0:01:53.4]} 28... Rd5 {[%clk 0:01:29.6]} 29.
Bxd3 {[%clk 0:01:39.1]} 29... Bxd3 {[%clk 0:01:29.1]} 30. Qc8+ {[%clk
0:01:17.5]} 30... Kh7 {[%clk 0:01:28.4]} 31. Qxa6 {[%clk 0:01:17.8]} 31... Be4
{[%clk 0:01:16.5]} 32. Rxd5 {[%clk 0:01:13.3]} 32... Qxd5 {[%clk 0:01:17.4]} 33.
Ne1 {[%clk 0:01:01.2]} 33... Qd2 {[%clk 0:01:12.2]} 34. Qa5 {[%clk 0:01:01.5]}
34... Qxa5 {[%clk 0:01:11.3]} 0-1